fUSD/lending_fUSD_20250115
["ID","MTS","AMOUNT","RATE_DAILY","PERIOD"]
[348989797,1736921434170,-500.0,9.999e-05,2]
[348989800,1736921434181,-500.0,9.999e-05,2]
[348989802,1736921434191,-500.0,9.999e-05,2]
[348989804,1736921434202,-500.0,9.999e-05,2]
[348989806,1736921434213,-500.0,9.999e-05,2]
[348989808,1736921434224,-500.0,9.999e-05,2]
[348989810,1736921434234,-500.0,9.999e-05,2]
[348989813,1736921434245,-500.0,9.999e-05,2]
[348989815,1736921434255,-504.89417046,9.999e-05,2]
[348989817,1736921434266,-500.0,9.999e-05,2]
[348989819,1736921434277,-500.0,9.999e-05,2]
[348989821,1736921434288,-500.0,9.999e-05,2]
[348989823,1736921434299,-500.0,9.999e-05,2]
[348989826,1736921434311,-500.0,9.999e-05,2]
[348989828,1736921434322,-506.14822618,9.999e-05,2]
[348989830,1736921434332,-500.0,9.999e-05,2]
[348989832,1736921434343,-500.0,9.999e-05,2]
[348989834,1736921434355,-500.0,9.999e-05,2]
[348989836,1736921434367,-153.31730195,9.999e-05,2]
[348989838,1736921434378,-500.0,9.999e-05,2]
[348989841,1736921434389,-500.0,9.999e-05,2]
[348989843,1736921434401,-500.0,9.999e-05,2]
[348989844,1736921434413,-500.0,9.999e-05,2]
[348989845,1736921434424,-500.0,9.999e-05,2]
[348989846,1736921434435,-500.0,9.999e-05,2]
[348989847,1736921434447,-500.0,9.999e-05,2]
[348989848,1736921434458,-500.0,9.999e-05,2]
[348989849,1736921434469,-500.0,9.999e-05,2]
[348989850,1736921434479,-500.0,9.999e-05,2]
[348989851,1736921434491,-500.0,9.999e-05,2]
[348989852,1736921434503,-500.0,9.999e-05,2]
[348989853,1736921434514,-502.70602966,9.999e-05,2]
[348989854,1736921434525,-500.0,9.999e-05,2]
[348989856,1736921434536,-500.0,9.999e-05,2]
[348989858,1736921434547,-500.0,9.999e-05,2]
[348989861,1736921434558,-500.0,9.999e-05,2]
[348989863,1736921434569,-500.0,9.999e-05,2]
[348989865,1736921434581,-500.0,9.999e-05,2]
[348989867,1736921434592,-500.0,9.999e-05,2]
[348989869,1736921434603,-516.70622247,9.999e-05,2]
[348989871,1736921434613,-500.0,9.999e-05,2]
[348989873,1736921434625,-500.0,9.999e-05,2]
[348989875,1736921434635,-500.0,9.999e-05,2]
[348989877,1736921434647,-500.0,9.999e-05,2]
[348989880,1736921434661,-500.0,9.999e-05,2]
[348989882,1736921434674,-500.0,9.999e-05,2]
[348989883,1736921434685,-500.0,9.999e-05,2]
[348989885,1736921434696,-1000.0,9.999e-05,2]
[348989887,1736921434708,-500.0,9.999e-05,2]
[348989889,1736921434718,-500.0,9.999e-05,2]
[348989891,1736921434730,-500.0,9.999e-05,2]
[348989893,1736921434743,-500.0,9.999e-05,2]
[348989895,1736921434754,-500.0,9.999e-05,2]
[348989898,1736921434766,-500.0,9.999e-05,2]
[348989900,1736921434778,-500.0,9.999e-05,2]
[348989902,1736921434788,-500.0,9.999e-05,2]
[348989904,1736921434798,-500.0,9.999e-05,2]
[348989906,1736921434808,-500.0,9.999e-05,2]
[348989908,1736921434818,-500.0,9.999e-05,2]
[348989910,1736921434827,-500.0,9.999e-05,2]
[348989912,1736921434837,-500.0,9.999e-05,2]
[348989914,1736921434847,-500.0,9.999e-05,2]
[348989917,1736921434857,-500.0,9.999e-05,2]
[348989919,1736921434867,-500.0,9.999e-05,2]
[348989921,1736921434878,-500.0,9.999e-05,2]
[348989923,1736921434890,-500.0,9.999e-05,2]
[348989925,1736921434902,-500.0,9.999e-05,2]
[348989927,1736921434912,-500.0,9.999e-05,2]
[348989930,1736921434922,-500.0,9.999e-05,2]
[348989932,1736921434932,-500.0,9.999e-05,2]
[348989934,1736921434941,-500.0,9.999e-05,2]
[348989936,1736921434950,-523.02,9.999e-05,2]
[348989938,1736921434960,-539.04018271,9.999e-05,2]
[348989940,1736921434969,-197.29538894,9.999e-05,2]
[348989942,1736921434980,-502.21703234,9.999e-05,2]
[348989944,1736921434989,-500.0,9.999e-05,2]
[348989946,1736921434999,-500.0,9.999e-05,2]
[348989948,1736921435008,-510.7024402,9.999e-05,2]
[348989950,1736921435018,-500.0,9.999e-05,2]
[348989952,1736921435028,-539.37,9.999e-05,2]
[348989954,1736921435038,-500.0,9.999e-05,2]
[348989956,1736921435057,-500.0,9.999e-05,2]
[348989958,1736921435067,-500.0,9.999e-05,2]
[348989961,1736921435077,-634.65585695,9.999e-05,2]
[348989963,1736921435087,-519.53,9.999e-05,2]
[348989965,1736921435097,-503.74065817,9.999e-05,2]
[348989967,1736921435107,-500.0,9.999e-05,2]
[348989969,1736921435116,-500.0,9.999e-05,2]
[348989971,1736921435129,-500.0,9.999e-05,2]
[348989973,1736921435139,-500.0,9.999e-05,2]
[348989975,1736921435149,-504.17283906,9.999e-05,2]
[348989977,1736921435160,-212.53292214,9.999e-05,2]
[348989979,1736921435170,-500.0,9.999e-05,2]
[348989981,1736921435180,-500.0,9.999e-05,2]
[348989983,1736921435191,-500.0,9.999e-05,2]
[348989985,1736921435202,-501.81239221,9.999e-05,2]
[348989987,1736921435212,-507.09957511,9.999e-05,2]
[348989989,1736921435222,-502.86193685,9.999e-05,2]
[348989991,1736921435233,-500.0,9.999e-05,2]
[348989993,1736921435244,-503.53218313,9.999e-05,2]
[348989995,1736921435254,-500.0,9.999e-05,2]
[348989998,1736921435265,-508.5005226,9.999e-05,2]
[348990000,1736921435276,-538.4882822,9.999e-05,2]
[348990002,1736921435287,-503.29776338,9.999e-05,2]
[348990004,1736921435298,-500.0,9.999e-05,2]
[348990006,1736921435309,-501.27369345,9.999e-05,2]
[348990008,1736921435320,-500.0,9.999e-05,2]
[348990010,1736921435331,-672.6,9.999e-05,2]
[348990012,1736921435342,-500.0,9.999e-05,2]
[348990014,1736921435352,-672.6,9.999e-05,2]
[348990016,1736921435363,-672.6,9.999e-05,2]
[348990018,1736921435377,-504.25502947,9.999e-05,2]
[348990020,1736921435387,-672.6,9.999e-05,2]
[348990023,1736921435398,-500.0,9.999e-05,2]
[348990025,1736921435410,-500.0,9.999e-05,2]
[348990027,1736921435420,-500.0,9.999e-05,2]
[348990029,1736921435431,-672.6,9.999e-05,2]
[348990031,1736921435442,-500.0,9.999e-05,2]
[348990033,1736921435452,-500.73798181,9.999e-05,2]
[348990035,1736921435463,-500.0,9.999e-05,2]
[348990037,1736921435474,-464.05474981,9.999e-05,2]
[348990042,1736921435516,-36.73943702,9.999e-05,2]
[348990045,1736921435527,-294.66105825,9.999e-05,2]
[348990047,1736921435540,-205.33894175,9.999e-05,2]
[348990049,1736921435551,-245.31405825,9.999e-05,2]
[348990052,1736921435573,-254.68594175,9.999e-05,2]
[348990054,1736921435584,-114.77405825,9.999e-05,2]
[348990057,1736921435597,-385.22594175,9.999e-05,2]
[348990059,1736921435608,-500.0,9.999e-05,2]
[348990061,1736921435620,-500.0,9.999e-05,2]
[348990063,1736921435630,-508.04099135,9.999e-05,2]
[348990065,1736921435642,-500.0,9.999e-05,2]
[348990067,1736921435656,-500.0,9.999e-05,2]
[348990069,1736921435668,-500.0,9.999e-05,2]
[348990071,1736921435679,-500.0,9.999e-05,2]
[348990073,1736921435690,-500.0,9.999e-05,2]
[348990075,1736921435702,-155.27012439,9.999e-05,2]
[348990077,1736921435713,-474.30172634,9.999e-05,2]
[348990225,1736921437427,-33.21274673,9.999e-05,2]
[348990227,1736921437438,-500.0,9.999e-05,2]
[348990229,1736921437448,-426.78725327,9.999e-05,2]
[348990232,1736921437460,-73.21274673,9.999e-05,2]
[348990234,1736921437470,-505.43534017,9.999e-05,2]
[348990236,1736921437482,-500.0,9.999e-05,2]
[348990238,1736921437492,-500.0,9.999e-05,2]
[348990240,1736921437503,-561.04270112,9.999e-05,2]
[348990242,1736921437514,-501.58801423,9.999e-05,2]
[348990244,1736921437524,-500.0,9.999e-05,2]
[348990246,1736921437534,-500.0,9.999e-05,2]
[348990248,1736921437545,-565.28192811,9.999e-05,2]
[348990250,1736921437555,-500.0,9.999e-05,2]
[348990252,1736921437566,-500.0,9.999e-05,2]
[348990255,1736921437576,-517.37780878,9.999e-05,2]
[348990257,1736921437586,-610.51,9.999e-05,2]
[348990259,1736921437596,-500.0,9.999e-05,2]
[348990261,1736921437606,-512.11060823,9.999e-05,2]
[348990263,1736921437616,-551.06,9.999e-05,2]
[348990265,1736921437627,-500.0,9.999e-05,2]
[348990267,1736921437637,-500.0,9.999e-05,2]
[348990269,1736921437647,-500.0,9.999e-05,2]
[348990271,1736921437661,-501.62887845,9.999e-05,2]
[348990273,1736921437672,-500.0,9.999e-05,2]
[348990275,1736921437682,-500.0,9.999e-05,2]
[348990277,1736921437692,-500.0,9.999e-05,2]
[348990279,1736921437703,-500.0,9.999e-05,2]
[348990281,1736921437713,-500.0,9.999e-05,2]
[348990284,1736921437724,-500.0,9.999e-05,2]
[348990286,1736921437736,-500.0,9.999e-05,2]
[348990288,1736921437746,-500.0,9.999e-05,2]
[348990290,1736921437756,-500.0,9.999e-05,2]
[348990292,1736921437767,-500.0,9.999e-05,2]
[348990294,1736921437777,-500.0,9.999e-05,2]
[348990296,1736921437788,-500.0,9.999e-05,2]
[348990298,1736921437798,-500.0,9.999e-05,2]
[348990300,1736921437808,-500.0,9.999e-05,2]
[348990302,1736921437818,-500.0,9.999e-05,2]
[348990304,1736921437828,-500.0,9.999e-05,2]
[348990306,1736921437838,-392.80664094,9.999e-05,2]
[348990335,1736921438100,-149.92335906,9.999e-05,2]
[348990337,1736921438112,-500.0,9.999e-05,2]
[348990339,1736921438122,-527.99,9.999e-05,2]
[348990342,1736921438131,-577.29,9.999e-05,2]
[348990344,1736921438140,-500.0,9.999e-05,2]
[348990346,1736921438150,-500.0,9.999e-05,2]
[348990347,1736921438159,-500.0,9.999e-05,2]
[348990349,1736921438168,-318.79664094,9.999e-05,2]
[348990351,1736921438180,-181.20335906,9.999e-05,2]
[348990353,1736921438190,-500.0,9.999e-05,2]
[348990355,1736921438200,-500.0,9.999e-05,2]
[348990357,1736921438209,-500.0,9.999e-05,2]
[348990360,1736921438219,-4164.5422441,0.0001,2]
[348990362,1736921438231,-11710.53549523,0.0001,2]
[348990364,1736921438243,-3539.19414474,0.0001,2]
[348990366,1736921438254,-2943.84242347,0.0001,2]
[348990368,1736921438265,-312.95272891,0.0001,2]
[348990371,1736921438276,-974.80061012,0.0001,2]
[348990373,1736921438288,-328960.49828658,0.0001,2]
[348990375,1736921438299,-451.15504761,0.0001,2]
[348990377,1736921438311,-210092.47825659,0.0001,2]
[348990502,1736921439484,-500.0,9.999e-05,2]
[348990504,1736921439493,-4264.15905,0.0001,2]
[348990506,1736921439504,-2905.38,0.0001,2]
[348990509,1736921439516,-395.472,0.0001,2]
[348990511,1736921439528,-19860.85463762,0.0001,2]
[348990513,1736921439540,-3250.01874056,0.0001,2]
[348990516,1736921439555,-5770.24589802,0.0001,2]
[348990523,1736921439616,-305.0000025,0.0001,2]
[348990526,1736921439629,-1535.59155827,0.0001,2]
[348990532,1736921439679,-1983.63196406,0.0001,2]
[348990534,1736921439691,-516.56031135,0.0001,2]
[348990545,1736921439795,-4965.55,0.0001,2]
[348990552,1736921439853,-11336.83571536,0.0001,2]
[348990554,1736921439865,-24571.526139,0.0001,2]
[348990812,1736921442583,-500.0,9.999e-05,2]
[348990813,1736921442593,-37.35,0.0001,2]
[348990814,1736921442697,-500.0,9.999e-05,2]
[348990815,1736921442707,-244.79128,0.0001,2]
[348990816,1736921442719,-1450.31865778,0.0001,2]
[348990817,1736921442730,-1356.88405844,0.0001,2]
[348990818,1736921442759,-846.0,0.0001,2]
[348990819,1736921442770,-495.58079881,0.0001,2]
[348990820,1736921442782,-2187.3,0.0001,2]
[348990821,1736921442793,-1098.44735005,0.0001,2]
[348990822,1736921442805,-4797.32775001,0.0001,2]
[348990823,1736921442815,-2613.24932791,0.0001,2]
[348990824,1736921442826,-1711.87058023,0.0001,2]
[348990833,1736921445557,-500.0,9.999e-05,2]
[348990834,1736921445567,-231.53397464,9.999e-05,2]
[348990835,1736921445617,-7.04692146,9.999e-05,2]
[348990836,1736921445628,-2905.57725703,0.0001,2]
[348990837,1736921445639,-117717.46212234,0.0001,2]
[348990838,1736921445652,-69733.22327633,0.0001,2]
[348990839,1736921445664,-576.70999178,0.0001,2]
[348990840,1736921445676,-1104.89183922,0.0001,2]
[348990841,1736921445839,-365.27979223,0.0001,2]
[348990843,1736921484738,158.14,8.54e-05,2]
[348990845,1736922326939,158.14,8.219e-05,2]
[348990861,1736922631928,-306.82729485,9e-05,2]
[348990862,1736922631938,-1671.45,9.899e-05,2]
[348990863,1736922631947,-561.12483006,9.9e-05,2]
[348990864,1736922631958,-271.93886994,9.9e-05,2]
[348990865,1736922631968,-150.0,9.998e-05,2]
[348990866,1736922631977,-502.99186117,9.999e-05,2]
[348990867,1736922631987,-501.93231891,9.999e-05,2]
[348990868,1736922631996,-500.31349963,9.999e-05,2]
[348990869,1736922632006,-337.228365,9.999e-05,2]
[348990870,1736922632015,-762.831752,9.999e-05,2]
[348990871,1736922632024,-500.0,9.999e-05,2]
[348990872,1736922632034,-199.53524134,9.999e-05,2]
[348990873,1736922632042,-512.82296579,9.999e-05,2]
[348990874,1736922632051,-500.0,9.999e-05,2]
[348990875,1736922632062,-500.0,9.999e-05,2]
[348990876,1736922632072,-500.0,9.999e-05,2]
[348990877,1736922632083,-513.63482118,9.999e-05,2]
[348990878,1736922632092,-192.87772921,9.999e-05,2]
[348990879,1736922632101,-500.0,9.999e-05,2]
[348990880,1736922632111,-500.0,9.999e-05,2]
[348990881,1736922632120,-509.29559776,9.999e-05,2]
[348990882,1736922632129,-500.0,9.999e-05,2]
[348990883,1736922632138,-500.0,9.999e-05,2]
[348990884,1736922632147,-500.0,9.999e-05,2]
[348990885,1736922632156,-212.86417025,9.999e-05,2]
[348990886,1736922632168,-58.40280784,9.999e-05,2]
[348990887,1736922632188,-276.9999995,9.999e-05,2]
[348990888,1736922632209,-164.59719266,9.999e-05,2]
[348990889,1736922632218,-500.0,9.999e-05,2]
[348990890,1736922632228,-500.0,9.999e-05,2]
[348990891,1736922632237,-500.0,9.999e-05,2]
[348990892,1736922632247,-500.0,9.999e-05,2]
[348990893,1736922632256,-500.0,9.999e-05,2]
[348990894,1736922632265,-500.0,9.999e-05,2]
[348990895,1736922632274,-500.0,9.999e-05,2]
[348990896,1736922632283,-500.0,9.999e-05,2]
[348990897,1736922632292,-500.0,9.999e-05,2]
[348990899,1736922632301,-500.0,9.999e-05,2]
[348990901,1736922632311,-136.64950988,9.999e-05,2]
[348990904,1736922632331,-363.35049012,9.999e-05,2]
[348990905,1736922632340,-500.0,9.999e-05,2]
[348990907,1736922632350,-503.75,9.999e-05,2]
[348990909,1736922632359,-513.82,9.999e-05,2]
[348990911,1736922632368,-500.0,9.999e-05,2]
[348990913,1736922632378,-500.0,9.999e-05,2]
[348990915,1736922632387,-513.09384122,9.999e-05,2]
[348990917,1736922632396,-500.0,9.999e-05,2]
[348990919,1736922632406,-500.0,9.999e-05,2]
[348990921,1736922632416,-500.0,9.999e-05,2]
[348990923,1736922632426,-500.0,9.999e-05,2]
[348990925,1736922632435,-500.0,9.999e-05,2]
[348990927,1736922632445,-500.0,9.999e-05,2]
[348990929,1736922632454,-500.0,9.999e-05,2]
[348990931,1736922632463,-500.0,9.999e-05,2]
[348990933,1736922632473,-500.0,9.999e-05,2]
[348990935,1736922632482,-500.0,9.999e-05,2]
[348990937,1736922632491,-500.0,9.999e-05,2]
[348990939,1736922632502,-500.0,9.999e-05,2]
[348990941,1736922632511,-500.0,9.999e-05,2]
[348990943,1736922632521,-533.88,9.999e-05,2]
[348990945,1736922632530,-500.0,9.999e-05,2]
[348990947,1736922632540,-500.0,9.999e-05,2]
[348990949,1736922632552,-500.0,9.999e-05,2]
[348990951,1736922632561,-503.20332746,9.999e-05,2]
[348990953,1736922632571,-506.6832383,9.999e-05,2]
[348990955,1736922632579,-500.0,9.999e-05,2]
[348990957,1736922632590,-500.0,9.999e-05,2]
[348990959,1736922632599,-501.65981154,9.999e-05,2]
[348990961,1736922632608,-500.0,9.999e-05,2]
[348990963,1736922632617,-500.0,9.999e-05,2]
[348990965,1736922632627,-500.0,9.999e-05,2]
[348990967,1736922632637,-500.0,9.999e-05,2]
[348990969,1736922632646,-500.0,9.999e-05,2]
[348990971,1736922632655,-500.0,9.999e-05,2]
[348990973,1736922632665,-500.0,9.999e-05,2]
[348990975,1736922632675,-500.0,9.999e-05,2]
[348990977,1736922632685,-505.89421977,9.999e-05,2]
[348990979,1736922632694,-500.0,9.999e-05,2]
[348990981,1736922632703,-500.0,9.999e-05,2]
[348990983,1736922632712,-500.0,9.999e-05,2]
[348990985,1736922632721,-500.0,9.999e-05,2]
[348990987,1736922632730,-500.0,9.999e-05,2]
[348990989,1736922632739,-500.0,9.999e-05,2]
[348990991,1736922632749,-500.0,9.999e-05,2]
[348990993,1736922632758,-500.0,9.999e-05,2]
[348990995,1736922632767,-500.0,9.999e-05,2]
[348990997,1736922632776,-506.77342832,9.999e-05,2]
[348990999,1736922632786,-516.94712118,9.999e-05,2]
[348991001,1736922632795,-500.0,9.999e-05,2]
[348991003,1736922632806,-500.0,9.999e-05,2]
[348991005,1736922632815,-515.39942023,9.999e-05,2]
[348991007,1736922632825,-500.0,9.999e-05,2]
[348991009,1736922632835,-500.0,9.999e-05,2]
[348991011,1736922632844,-500.0,9.999e-05,2]
[348991013,1736922632854,-500.0,9.999e-05,2]
[348991015,1736922632863,-501.25204068,9.999e-05,2]
[348991017,1736922632873,-505.05389822,9.999e-05,2]
[348991019,1736922632882,-500.0,9.999e-05,2]
[348991021,1736922632892,-367.26729492,9.999e-05,2]
[348991023,1736922632901,-500.0,9.999e-05,2]
[348991025,1736922632911,-500.0,9.999e-05,2]
[348991027,1736922632920,-500.0,9.999e-05,2]
[348991029,1736922632929,-523.82903556,9.999e-05,2]
[348991031,1736922632938,-503.72325955,9.999e-05,2]
[348991033,1736922632948,-500.0,9.999e-05,2]
[348991035,1736922632957,-530.2148208,9.999e-05,2]
[348991037,1736922632966,-500.0,9.999e-05,2]
[348991039,1736922632975,-500.0,9.999e-05,2]
[348991041,1736922632984,-500.0,9.999e-05,2]
[348991043,1736922632994,-513.01643329,9.999e-05,2]
[348991045,1736922633004,-618.32,9.999e-05,2]
[348991047,1736922633015,-500.0,9.999e-05,2]
[348991049,1736922633024,-500.0,9.999e-05,2]
[348991051,1736922633033,-500.0,9.999e-05,2]
[348991053,1736922633042,-527.3960208,9.999e-05,2]
[348991055,1736922633054,-500.0,9.999e-05,2]
[348991057,1736922633066,-500.0,9.999e-05,2]
[348991060,1736922633078,-500.0,9.999e-05,2]
[348991062,1736922633091,-503.14914509,9.999e-05,2]
[348991064,1736922633104,-500.0,9.999e-05,2]
[348991066,1736922633116,-500.0,9.999e-05,2]
[348991069,1736922633127,-508.18313069,9.999e-05,2]
[348991071,1736922633138,-500.0,9.999e-05,2]
[348991073,1736922633149,-500.0,9.999e-05,2]
[348991075,1736922633162,-504.50882293,9.999e-05,2]
[348991077,1736922633173,-507.58955547,9.999e-05,2]
[348991079,1736922633184,-500.0,9.999e-05,2]
[348991081,1736922633195,-548.7,9.999e-05,2]
[348991083,1736922633207,-297.72602734,9.999e-05,2]
[348991086,1736922633218,-500.0,9.999e-05,2]
[348991088,1736922633229,-502.59073288,9.999e-05,2]
[348991090,1736922633241,-504.0600826,9.999e-05,2]
[348991092,1736922633252,-505.99,9.999e-05,2]
[348991094,1736922633263,-137.41055362,9.999e-05,2]
[348991349,1736922637647,-362.58944638,9.999e-05,2]
[348991350,1736922637659,-500.0,9.999e-05,2]
[348991351,1736922637673,-500.0,9.999e-05,2]
[348991352,1736922637685,-503.44317613,9.999e-05,2]
[348991353,1736922637696,-505.86108884,9.999e-05,2]
[348991354,1736922637706,-500.0,9.999e-05,2]
[348991355,1736922637716,-500.0,9.999e-05,2]
[348991356,1736922637726,-500.0,9.999e-05,2]
[348991357,1736922637737,-503.79562366,9.999e-05,2]
[348991358,1736922637747,-500.0,9.999e-05,2]
[348991359,1736922637757,-500.0,9.999e-05,2]
[348991360,1736922637767,-500.0,9.999e-05,2]
[348991361,1736922637778,-500.19677852,9.999e-05,2]
[348991362,1736922637790,-500.0,9.999e-05,2]
[348991363,1736922637801,-500.0,9.999e-05,2]
[348991364,1736922637812,-508.93666811,9.999e-05,2]
[348991365,1736922637823,-502.71674334,9.999e-05,2]
[348991366,1736922637835,-500.0,9.999e-05,2]
[348991367,1736922637845,-501.33213268,9.999e-05,2]
[348991368,1736922637856,-500.0,9.999e-05,2]
[348991369,1736922637867,-500.0,9.999e-05,2]
[348991370,1736922637877,-505.07875639,9.999e-05,2]
[348991371,1736922637887,-502.60872649,9.999e-05,2]
[348991372,1736922637898,-500.0,9.999e-05,2]
[348991373,1736922637909,-627.92,9.999e-05,2]
[348991374,1736922637919,-191.71050562,9.999e-05,2]
[348991375,1736922637929,-500.0,9.999e-05,2]
[348991376,1736922637940,-191.52181228,9.999e-05,2]
[348991377,1736922637951,-500.0,9.999e-05,2]
[348991378,1736922637963,-500.0,9.999e-05,2]
[348991379,1736922637974,-503.34,9.999e-05,2]
[348991380,1736922637984,-503.00662095,9.999e-05,2]
[348991381,1736922637995,-425.96109301,9.999e-05,2]
[348991382,1736922638005,-500.0,9.999e-05,2]
[348991383,1736922638015,-500.0,9.999e-05,2]
[348991384,1736922638026,-459.56,9.999e-05,2]
[348991386,1736922638036,-500.0,9.999e-05,2]
[348991388,1736922638046,-504.15130988,9.999e-05,2]
[348991391,1736922638064,-516.89,9.999e-05,2]
[348991393,1736922638075,-500.0,9.999e-05,2]
[348991395,1736922638085,-500.0,9.999e-05,2]
[348991397,1736922638096,-507.40154507,9.999e-05,2]
[348991399,1736922638107,-500.0,9.999e-05,2]
[348991401,1736922638118,-185.18327934,9.999e-05,2]
[348991403,1736922638129,-500.0,9.999e-05,2]
[348991405,1736922638139,-500.0,9.999e-05,2]
[348991407,1736922638149,-500.0,9.999e-05,2]
[348991409,1736922638159,-500.0,9.999e-05,2]
[348991411,1736922638170,-500.0,9.999e-05,2]
[348991415,1736922638183,-500.0,9.999e-05,2]
[348991417,1736922638193,-500.0,9.999e-05,2]
[348991419,1736922638204,-500.0,9.999e-05,2]
[348991421,1736922638214,-500.0,9.999e-05,2]
[348991423,1736922638224,-500.0,9.999e-05,2]
[348991425,1736922638234,-500.0,9.999e-05,2]
[348991427,1736922638245,-500.0,9.999e-05,2]
[348991429,1736922638255,-500.0,9.999e-05,2]
[348991432,1736922638265,-500.0,9.999e-05,2]
[348991434,1736922638277,-500.0,9.999e-05,2]
[348991436,1736922638287,-500.0,9.999e-05,2]
[348991438,1736922638298,-500.0,9.999e-05,2]
[348991440,1736922638309,-500.0,9.999e-05,2]
[348991442,1736922638319,-500.0,9.999e-05,2]
[348991444,1736922638329,-500.0,9.999e-05,2]
[348991446,1736922638339,-500.0,9.999e-05,2]
[348991448,1736922638350,-527.98,9.999e-05,2]
[348991451,1736922638360,-500.0,9.999e-05,2]
[348991453,1736922638370,-500.0,9.999e-05,2]
[348991455,1736922638381,-500.0,9.999e-05,2]
[348991457,1736922638391,-500.0,9.999e-05,2]
[348991459,1736922638402,-500.0,9.999e-05,2]
[348991461,1736922638412,-500.0,9.999e-05,2]
[348991463,1736922638423,-500.0,9.999e-05,2]
[348991465,1736922638434,-585.07,9.999e-05,2]
[348991467,1736922638445,-500.0,9.999e-05,2]
[348991469,1736922638455,-500.0,9.999e-05,2]
[348991471,1736922638465,-500.0,9.999e-05,2]
[348991473,1736922638475,-500.0,9.999e-05,2]
[348991476,1736922638485,-532.47,9.999e-05,2]
[348991478,1736922638495,-532.47,9.999e-05,2]
[348991480,1736922638505,-500.0,9.999e-05,2]
[348991482,1736922638515,-500.0,9.999e-05,2]
[348991484,1736922638526,-500.0,9.999e-05,2]
[348991486,1736922638536,-500.0,9.999e-05,2]
[348991488,1736922638547,-500.0,9.999e-05,2]
[348991490,1736922638560,-500.0,9.999e-05,2]
[348991492,1736922638570,-642.75911149,9.999e-05,2]
[348991494,1736922638580,-589.0,9.999e-05,2]
[348991496,1736922638591,-500.0,9.999e-05,2]
[348991498,1736922638601,-500.0,9.999e-05,2]
[348991500,1736922638611,-500.0,9.999e-05,2]
[348991502,1736922638621,-500.0,9.999e-05,2]
[348991505,1736922638632,-372.99,9.999e-05,2]
[348991507,1736922638642,-162.67289811,9.999e-05,2]
[348991509,1736922638652,-542440.87929827,0.0001,2]
[348991511,1736922638663,-159.46385792,0.0001,2]
[348991513,1736922638674,-382.0,0.0001,2]
[348991515,1736922638684,-91955.3653243,0.0001,2]
[348991517,1736922638694,-388.59014018,0.0001,2]
[348991519,1736922638704,-500.0,0.0001,3]
[348991521,1736922638714,-3278655.60046188,0.0001,2]
[348991523,1736922638725,-363472.57779987,0.0001,2]
[348991526,1736922638739,-1002.54824602,0.0001,2]
[348991530,1736922638771,-493.42092675,0.0001,2]
[348991579,1736922639814,-431.73551758,9.999e-05,2]
[348991583,1736922640296,-101.53448242,9.999e-05,2]
[348991584,1736922640306,-553.33806431,0.0001,2]
[348991590,1736922642917,-500.0,9.999e-05,2]
[348991591,1736922642926,-500.0,9.999e-05,2]
[348991592,1736922642936,-20.81900561,9.999e-05,2]
[348991593,1736922642994,-479.18099439,9.999e-05,2]
[348991594,1736922643004,-685.10630458,0.0001,2]
[348991595,1736922643016,-734.65,0.0001,2]
[348991596,1736922643027,-1421.25,0.0001,2]
[348991599,1736922645777,-500.0,9.999e-05,2]
[348991600,1736922645787,-150.8,9.999e-05,2]
[348991601,1736922645799,-349.2,9.999e-05,2]
[348991602,1736922645808,-70.28451,0.0001,2]
[348991603,1736922645820,-328.68581002,0.0001,2]
[348991604,1736922645855,-161506.93914611,0.0001,2]
[348991605,1736922645865,-318.62416433,0.0001,2]
[348991606,1736922645875,-258.64974151,0.0001,2]
[348991607,1736922645884,-523.23559194,0.0001,2]
[348991608,1736922645896,-177.32991834,0.0001,2]
[348991609,1736922645905,-2327.05094712,0.0001,2]
[348991610,1736922645913,-201.26408194,0.0001,2]
[348991611,1736922645922,-667.9,0.00010137,2]
[348991612,1736922645930,-156.46,0.00010137,2]
[348991613,1736922645939,-194.19,0.0001023,2]